bitfinex-derivatives/quotes_ETHF0:USTF0_20251012
["timestamp","ask_amount","ask_price","bid_price","bid_amount"]
[1760288919179,3.2116,4115.5,4114.7,6.39066041]
[1760288919369,3.2116,4116.3,4115.3,3.1803]
[1760288919575,3.64858,4116.3,4115.3,3.1803]
[1760288919781,2.70875194,4115.9,4115.3,3.1803]
[1760288920079,0.43701,4116.0,4115.3,3.1803]
[1760288920277,0.43703,4115.9,4115.3,3.1803]
[1760288920473,2.59801089,4115.9,4115.3,3.1803]
[1760288920672,0.437,4116.1,4115.3,3.1803]
[1760288921079,2.59801089,4116.0,4115.8,3.1803]
[1760288921377,3.24096593,4116.4,4115.8,3.1803]
[1760288921571,0.43704,4115.8,4115.3,3.1803]
[1760288921783,3.2116,4115.7,4115.2,6.3881]
[1760288921976,3.2116,4115.3,4115.2,3.2078]
[1760288922375,3.2078,4116.0,4115.2,3.2078]
[1760288922575,3.2116,4115.9,4115.2,3.2078]
[1760288922782,5.65534145,4115.6,4114.7,6.39066041]
[1760288923082,0.43708,4115.3,4114.7,6.39066041]
[1760288923474,3.64873,4114.9,4114.7,0.00256041]
[1760288923879,2.53602838,4114.8,4114.7,0.00256041]
[1760288924279,0.43711,4115.0,4114.7,0.00256041]
[1760288924578,6.35623378,4114.9,4114.7,0.00256041]
[1760288924781,3.2116,4114.8,4114.7,0.00256041]
[1760288925175,3.64869,4115.3,4114.7,0.00256041]
[1760288925371,0.43709,4115.2,4114.7,0.00256041]
[1760288925572,3.2116,4115.3,4114.8,3.1803]
[1760288925573,2.56270667,4115.0,4114.8,3.1803]
[1760288925779,3.2116,4116.0,4115.0,1.3434]
[1760288926082,3.2078,4116.1,4115.6,3.1803]
[1760288926281,3.2078,4116.1,4115.5,1.3434]
[1760288926484,3.2078,4116.1,4115.5,4.5237]
[1760288926879,0.0019472,4117.2,4116.0,3.2078]
[1760288926880,0.4369,4117.1,4116.0,3.2078]
[1760288927184,3.2116,4118.5,4117.1,3.1803]
[1760288927385,3.2116,4118.5,4117.6,3.2078]
[1760288927583,3.2116,4118.2,4117.1,3.2078]
[1760288927777,3.2116,4118.2,4117.2,3.1803]
[1760288927976,9.15750126,4118.1,4117.2,3.1803]
[1760288928177,9.15750126,4118.1,4117.6,6.3881]
[1760288928178,5.9518053,4118.1,4117.6,6.3881]
[1760288928377,2.74431271,4118.1,4117.6,6.3881]
[1760288928678,2.74431271,4118.1,4117.7,3.2174]
[1760288929075,0.00210404,4118.1,4117.7,3.2174]
[1760288929276,0.00210404,4118.1,4117.9,3.2174]
[1760288929782,3.3192,4119.6,4117.8,3.07487371]
[1760288929783,6.527,4119.6,4118.1,3.2174]
[1760288929981,6.527,4119.6,4118.9,3.2078]
[1760288930183,2.72699524,4119.5,4118.9,3.2078]
[1760288930682,2.72938106,4119.5,4118.9,3.2078]
[1760288931573,0.43665,4119.4,4118.9,3.2078]
[1760288931877,3.3192,4119.4,4118.9,3.2078]
[1760288932073,3.3192,4119.4,4118.9,6.4252]
[1760288932284,3.3192,4119.4,4118.9,3.2078]
[1760288932486,3.3192,4119.2,4118.4,3.2078]
[1760288932879,3.3192,4118.9,4117.8,3.2078]
[1760288933075,6.527,4118.9,4117.8,3.2078]
[1760288933280,0.6698,4119.0,4116.6,3.51047884]
[1760288933281,3.3192,4118.1,4117.2,0.00311181]
[1760288933481,0.43687,4117.4,4117.2,0.00311181]
[1760288933677,3.3192,4117.3,4117.2,0.00311181]
[1760288933882,9.10717956,4117.3,4117.2,0.00311181]
[1760288934489,3.3192,4118.0,4117.2,3.22051181]
[1760288934680,0.43681,4117.9,4117.2,3.22051181]
[1760288934880,6.18630331,4117.9,4117.2,0.00311181]
[1760288935082,5.74949331,4117.9,4117.2,0.00311181]
[1760288935280,6.18630331,4117.9,4117.2,0.00311181]
[1760288935888,0.43686,4117.4,4117.2,0.00311181]
[1760288936188,6.01634824,4117.3,4117.2,0.00311181]
[1760288936689,3.64463,4117.7,4117.2,0.00311181]
[1760288936690,3.3192,4117.5,4117.2,0.00311181]
[1760288936990,2.69714824,4117.4,4117.2,0.00311181]
[1760288937287,6.01634824,4117.4,4117.2,0.00311181]
[1760288937787,3.3192,4117.3,4117.2,0.00311181]
[1760288937986,3.2078,4118.2,4117.3,3.2174]
[1760288938188,3.2078,4118.2,4117.5,3.2078]
[1760288938383,3.1725353,4118.1,4117.5,3.2078]
[1760288939088,3.2078,4118.2,4118.0,1.3818]
[1760288939387,3.3192,4119.2,4118.1,6.4252]
[1760288939583,3.2078,4119.3,4118.2,3.2174]
[1760288940381,2.53668157,4119.2,4118.2,3.2174]
[1760288940581,2.53668157,4119.2,4118.9,6.4252]
[1760288940781,0.00238582,4119.5,4118.9,3.2078]
[1760288941187,0.86158845,4123.4,4118.2,1.68905495]
[1760288941188,3.2078,4123.2,4119.5,1.3818]
[1760288941382,3.2078,4125.2,4123.0,1.3818]
[1760288941584,3.3192,4126.4,4124.7,3.2078]
[1760288941787,2.55467172,4126.1,4125.1,3.2174]
[1760288941981,9.98170786,4126.0,4125.3,1.25641103]
[1760288942288,9.98170786,4126.0,4125.9,3.2078]
[1760288942289,0.0027868,4126.0,4125.9,3.2078]
[1760288942485,6.66529466,4126.0,4125.9,3.2078]
[1760288942684,0.0027868,4126.0,4125.9,6.3849]
[1760288943191,6.66529466,4126.0,4125.9,3.2078]
[1760288943390,13.35655044,4126.0,4125.9,3.2078]
[1760288943884,10.59289466,4126.0,4125.9,3.2078]
[1760288944083,10.59289466,4126.0,4125.3,3.18000363]
[1760288944084,13.74366649,4126.0,4125.4,3.2078]
[1760288944291,3.2078,4125.9,4125.4,3.2078]
[1760288944493,10.59010786,4125.5,4125.4,3.2078]
[1760288944695,6.66250786,4125.5,4125.4,3.2078]
[1760288944989,9.95620387,4125.5,4125.4,3.2078]
[1760288945193,6.66250786,4125.5,4125.4,6.3849]
[1760288945386,0.0027868,4126.0,4125.4,6.3849]
[1760288945592,3.1996,4125.9,4125.6,3.2078]
[1760288945891,9.36503754,4125.9,4125.6,3.2078]
[1760288946098,10.59010786,4125.7,4125.6,3.2078]
[1760288946293,7.39050786,4125.7,4125.6,3.2078]
[1760288946495,0.0027868,4126.0,4125.7,3.1771]
[1760288946496,2.74853598,4125.9,4125.7,3.1771]
[1760288946695,0.0027868,4126.0,4125.7,3.1771]
[1760288946895,4.04713555,4125.9,4125.7,3.1771]
[1760288947091,0.22,4127.3,4125.9,3.1771]
[1760288947292,6.92563311,4127.2,4126.9,3.2078]
[1760288947493,12.63940556,4127.2,4126.9,3.2078]
[1760288947788,4.45403311,4127.0,4126.9,3.2078]
[1760288947991,7.65625845,4127.0,4126.4,3.2078]
[1760288948197,3.72603311,4126.9,4126.4,3.2078]
[1760288948397,3.72603311,4126.9,4126.4,6.3849]
[1760288948588,3.72603311,4126.8,4126.4,3.2078]
[1760288948790,0.728,4126.7,4126.4,3.2078]
[1760288948990,4.45403311,4126.5,4126.4,3.2078]
[1760288949191,2.69530901,4126.7,4126.4,3.2078]
[1760288949192,4.45403311,4126.6,4126.4,3.2078]
[1760288949396,0.1,4126.9,4126.5,1.3079]
[1760288949598,0.22,4127.3,4126.5,1.3079]
[1760288949599,0.22,4127.3,4126.6,3.1771]
[1760288949794,0.8637,4129.3,4127.3,3.1771]
[1760288949795,3.1996,4129.0,4127.3,3.1771]
[1760288950098,1.1437,4134.2,4128.6,1.3079]
[1760288950297,4.8715331,4136.3,4130.5,3.1771]
[1760288950298,3.2078,4131.5,4130.5,3.1771]
[1760288950494,10.63760839,4133.5,4132.8,1.3079]
[1760288950495,5.85900839,4133.5,4132.8,1.3079]
[1760288950692,0.00214174,4133.5,4133.1,3.2078]
[1760288950894,2.58470908,4133.4,4133.1,3.2078]
[1760288951104,0.00214174,4133.5,4133.1,3.2078]
[1760288953390,0.01,4135.3,4132.8,0.00289084]
[1760288953391,0.01,4135.3,4133.6,3.20565826]
[1760288953596,0.01,4135.3,4135.2,3.2078]
[1760288954300,0.01228765,4135.3,4135.2,3.2078]
[1760288954496,3.2078,4137.2,4135.2,3.2078]
[1760288954698,3.1996,4137.9,4136.6,3.2078]
[1760288954895,3.1996,4137.2,4136.6,3.2078]
[1760288955096,3.13678713,4137.1,4136.9,3.2078]
[1760288955297,3.1996,4138.7,4136.9,3.2078]
[1760288955497,0.43465,4138.4,4137.8,3.2078]
[1760288955993,3.1996,4137.9,4137.2,3.2078]
[1760288956192,1.3511,4138.0,4137.2,3.2078]
[1760288956394,5.83658953,4137.8,4137.2,3.2078]
[1760288956599,5.83658953,4137.8,4136.9,0.00262691]
[1760288956600,3.1996,4137.8,4137.7,3.2078]
[1760288956805,3.1996,4137.8,4136.9,0.00262691]
[1760288956806,0.43478,4137.1,4137.0,3.2078]
[1760288957101,0.43478,4137.1,4136.9,0.00262691]
[1760288957102,4.5507,4137.0,4136.9,0.00262691]
[1760288957305,4.5507,4137.0,4136.2,3.2078]
[1760288957506,3.63446,4136.3,4136.2,3.2078]
[1760288957706,10.87024,4136.9,4135.7,3.2078]
[1760288957707,3.1996,4135.8,4135.7,3.2078]
[1760288957909,0.43497,4135.3,4135.2,3.2078]
[1760288958113,3.63457,4135.3,4135.2,3.2078]
[1760288958309,6.16844715,4135.3,4135.2,3.21057754]
[1760288958507,5.73347715,4135.3,4135.2,3.21057754]
[1760288958905,0.00219646,4135.3,4135.2,3.21057754]
[1760288959107,3.20179646,4135.3,4135.2,3.21057754]
[1760288959408,5.96244788,4135.3,4135.2,2.88154696]
[1760288959611,3.18320566,4135.3,4135.2,4.696e-05]
[1760288959802,2.76284788,4135.3,4135.2,4.696e-05]
[1760288960108,3.20179646,4135.3,4135.2,4.696e-05]
[1760288960306,0.00219646,4135.3,4135.2,4.696e-05]
[1760288960903,3.63676646,4135.3,4135.2,4.696e-05]
[1760288961512,3.20179646,4135.3,4135.2,4.696e-05]
[1760288961704,0.00219646,4135.3,4135.2,4.696e-05]
[1760288961902,3.1996,4136.7,4135.2,2.88424696]
[1760288962108,0.43487,4136.2,4136.1,3.2078]
[1760288962413,2.70696255,4136.5,4136.1,3.2078]
[1760288962610,0.1,4136.9,4136.1,3.2078]
[1760288962805,0.00219293,4136.9,4136.8,3.2078]
[1760288963108,3.20179293,4136.9,4136.8,3.2078]
[1760288963411,3.20179293,4136.9,4136.3,3.2078]
[1760288963412,0.43485,4136.4,4136.3,3.2078]
[1760288963611,0.43482,4136.7,4136.3,3.2078]
[1760288963807,0.00219293,4136.9,4136.3,3.2078]
[1760288964008,3.63419,4138.9,4136.9,2.8842]
[1760288964309,10.86036,4140.7,4135.5,0.9632]
[1760288964310,3.1996,4139.9,4138.6,3.2078]
[1760288964509,3.1996,4139.9,4136.4,0.9605]
[1760288964510,0.43453,4139.5,4139.4,3.2078]
[1760288964714,0.43452,4139.6,4139.4,3.2078]
[1760288964915,2.68261036,4140.4,4139.4,3.2078]
[1760288965220,2.68261036,4140.4,4140.1,3.2078]
[1760288965221,3.1996,4140.2,4140.1,3.2078]
[1760288965626,10.12321506,4140.2,4139.4,0.0022199]
[1760288965916,3.63413,4139.5,4139.4,0.0022199]
[1760288966115,3.1996,4139.5,4139.4,0.0022199]
[1760288966309,3.2078,4140.3,4139.4,0.0022199]
[1760288966310,3.1996,4141.3,4139.5,3.1771]
[1760288966510,0.43437,4141.1,4140.3,3.2078]
[1760288966710,3.2078,4141.3,4140.3,3.2078]
[1760288966914,1.08581,4141.5,4139.8,3.2078]
[1760288966915,0.43447,4140.0,4139.8,3.2078]
[1760288967213,0.01179028,4140.4,4139.8,3.2078]
[1760288967413,3.1996,4141.6,4140.3,6.3849]
[1760288967710,0.43427,4141.9,4141.4,3.2078]
[1760288967912,0.43428,4141.9,4141.4,3.2078]
[1760288968118,0.43431,4141.6,4141.4,3.2078]
[1760288968420,0.43630538,4141.6,4141.4,3.21073921]
[1760288968814,0.00199538,4141.6,4141.4,3.21073921]
[1760288969307,0.00199538,4141.6,4141.5,3.1771]
[1760288969508,0.022,4142.8,4141.5,3.1771]
[1760288969708,0.43418,4142.9,4142.7,3.2078]
[1760288970011,0.43418,4142.9,4141.4,6.38783921]
[1760288970012,3.1996,4142.8,4141.4,6.38783921]
[1760288970211,3.1996,4142.7,4141.4,3.21073921]
[1760288970407,0.43432,4141.5,4141.4,3.21073921]
[1760288970606,3.63392,4141.5,4141.4,0.00293921]
[1760288970808,9.3842992,4141.5,4141.4,9.21e-06]
[1760288971021,12.56754681,4141.5,4141.4,9.21e-06]
[1760288971807,0.4345,4139.7,4139.6,3.2078]
[1760288972012,0.43457,4139.1,4138.9,3.2078]
[1760288972311,0.43457,4139.1,4139.0,3.2078]
[1760288972507,3.1996,4139.6,4138.4,3.1608]
[1760288972508,0.4346,4138.8,4138.4,3.1608]
[1760288972712,1.08633,4139.5,4138.2,3.2078]
[1760288972911,0.43464,4138.4,4138.2,0.00273504]
[1760288973219,0.2096,4138.3,4138.2,0.00273504]
[1760288973418,5.80026016,4138.3,4138.2,5.04e-06]
[1760288973716,2.47247261,4138.3,4138.2,5.04e-06]
[1760288973917,0.43465,4138.4,4138.2,5.04e-06]
[1760288974116,2.7185286,4138.3,4138.2,5.04e-06]
[1760288974308,5.80471721,4138.3,4138.2,5.04e-06]
[1760288975015,2.7185286,4138.3,4138.2,5.04e-06]
[1760288975215,0.4346,4138.8,4138.2,5.04e-06]
[1760288975409,3.3899,4138.9,4138.2,5.04e-06]
[1760288975410,0.43463,4138.6,4138.2,5.04e-06]
[1760288975620,6.48157263,4138.3,4138.2,5.04e-06]
[1760288975815,0.43465,4138.3,4138.2,3.20780504]
[1760288976014,3.3899,4139.1,4138.2,3.20780504]
[1760288976220,3.20990577,4139.5,4138.2,5.04e-06]
[1760288976221,3.00556298,4138.3,4138.2,5.04e-06]
[1760288976422,9.32769922,4138.3,4138.2,5.04e-06]
[1760288976621,3.64245,4138.3,4138.2,5.04e-06]
[1760288976821,9.32769922,4138.3,4138.2,5.04e-06]
[1760288977820,0.43465,4138.4,4138.2,5.04e-06]
[1760288978013,0.43465,4138.4,4138.3,3.2078]
[1760288978317,3.82454,4138.4,4138.2,5.04e-06]
[1760288978517,6.23235165,4138.4,4138.2,5.04e-06]
[1760288978910,3.19074842,4138.3,4138.2,5.04e-06]
[1760288979417,5.91436708,4138.3,4138.2,5.04e-06]
[1760288979616,0.43464,4138.4,4138.2,5.04e-06]
[1760288979819,2.72361866,4138.3,4138.2,5.04e-06]
[1760288980216,0.43465,4138.4,4138.2,5.04e-06]
[1760288980615,9.18633655,4138.3,4138.2,5.04e-06]
[1760288980811,0.43464,4138.4,4138.2,5.04e-06]
[1760288981023,3.3899,4136.7,4136.6,3.2078]
[1760288981320,3.3899,4136.7,4135.7,1.68905495]
[1760288981321,1.08727,4135.9,4135.3,3.2078]
[1760288981626,1.08727,4135.9,4134.0,1.68905495]
[1760288981627,4.47735,4135.2,4134.6,3.2078]
[1760288981918,1.08743,4135.3,4133.3,0.80404265]
[1760288981919,3.3899,4134.0,4133.3,0.80404265]
[1760288982222,0.43513,4133.8,4133.4,3.1608]
[1760288982420,0.43513,4133.8,4133.6,3.2078]
[1760288982721,3.3899,4133.4,4132.2,0.80404265]
[1760288982916,3.3899,4132.0,4131.0,0.80404265]
[1760288983221,3.3899,4132.0,4130.4,1.68905495]
[1760288983222,0.43534,4131.8,4131.6,3.2078]
[1760288983419,0.4355,4130.3,4130.1,0.80404265]
[1760288983611,0.4355,4130.3,4129.7,3.2918]
[1760288983612,0.4355,4130.3,4129.2,5.59661738]
[1760288983816,0.4355,4130.3,4129.8,3.2078]
[1760288983817,0.43551,4130.1,4129.8,3.2078]
[1760288984222,0.43554,4129.9,4129.2,4.79527732]
[1760288984518,0.00248666,4130.3,4129.9,3.2918]
[1760288985124,2.56492493,4130.2,4129.9,3.2918]
[1760288985623,0.43552,4130.1,4129.8,3.2078]
[1760288985824,0.00248666,4130.3,4129.9,3.2918]
[1760288986421,0.00248666,4130.3,4129.8,3.2078]
[1760288986628,0.00248666,4130.3,4129.9,3.2918]
[1760288986815,0.00248666,4130.3,4129.8,3.2078]
[1760288987023,0.00248666,4130.3,4130.1,3.2918]
[1760288987325,0.00248666,4130.3,4130.0,1.3078]
[1760288987528,0.00248666,4130.3,4130.1,3.2918]
[1760288987825,0.00248666,4130.3,4130.0,1.3078]
[1760288988025,0.00248666,4130.3,4130.1,3.2918]
[1760288988221,0.00248666,4130.3,4130.0,1.3078]
[1760288988422,3.2078,4131.8,4130.1,3.2918]
[1760288988622,3.2078,4131.8,4131.1,3.2078]
[1760288988825,3.2078,4132.4,4131.7,3.2078]
[1760288989021,1.08768,4134.4,4132.3,3.2078]
[1760288989022,3.2078,4133.5,4132.3,3.2078]
[1760288989220,3.2078,4133.5,4132.4,3.2918]
[1760288989425,3.08822513,4133.4,4132.4,0.00225259]
[1760288989619,0.00175508,4133.5,4133.4,3.2918]
[1760288991431,0.43519,4133.3,4132.7,3.2078]
[1760288991730,5.72361898,4133.2,4132.5,3.2918]
[1760288991925,0.43522,4133.0,4132.4,0.00225259]
[1760288992426,3.2078,4133.3,4132.8,3.2918]
[1760288992624,0.00175508,4133.5,4132.8,3.2918]
[1760288992923,10.151,4135.8,4134.1,3.2918]
[1760288993125,10.151,4135.8,4135.5,3.2078]
[1760288993530,2.6485,4135.7,4135.0,3.2078]
[1760288993721,2.6485,4134.4,4133.8,3.2078]
[1760288994027,2.58090302,4134.3,4133.8,3.21004834]
[1760288994423,5.74256067,4134.3,4133.8,3.21004834]
[1760288994630,0.00196412,4134.4,4133.8,6.50184834]
[1760288995127,3.2078,4136.4,4134.3,3.2078]
[1760288995319,2.6504,4137.7,4136.1,3.2918]
[1760288995521,3.2078,4137.6,4136.1,3.2918]
[1760288995727,5.76871309,4136.8,4136.0,3.2078]
[1760288996032,0.43494,4135.6,4134.6,3.2078]
[1760288996232,0.435,4135.0,4134.6,3.2078]
[1760288996530,5.98850756,4135.5,4134.6,3.2078]
[1760288996725,3.21025766,4135.6,4134.6,6.4996]
[1760288997125,3.21025766,4135.6,4135.1,3.2078]
[1760288997628,0.43498,4135.2,4134.6,3.2078]
[1760288997928,2.6504,4134.8,4133.4,3.2078]
[1760288998134,2.6482,4133.8,4133.4,3.2078]
[1760288998333,0.4351,4134.1,4133.3,3.2078]
[1760288998633,0.4351,4134.1,4132.8,4.5996]
[1760288998634,3.40980636,4133.7,4132.9,3.2918]
[1760288998826,5.70907232,4133.8,4133.4,3.2918]
[1760288999023,5.70907232,4133.8,4132.8,1.3078]
[1760288999024,5.7589747,4134.3,4133.2,3.2078]
[1760288999230,3.08338,4133.3,4133.2,0.00177184]
[1760288999425,3.2078,4133.6,4133.2,0.00177184]
[1760288999834,5.75583394,4133.5,4133.2,0.00177184]
[1760289000131,2.6482,4135.0,4133.5,3.2918]
[1760289000330,3.2078,4135.1,4133.5,3.2918]
[1760289000527,1.08704,4136.8,4133.2,0.00177184]
[1760289000528,2.8082495,4135.4,4134.3,3.2918]
[1760289000729,3.21025766,4135.6,4134.3,3.2918]
[1760289001128,3.2078,4135.0,4134.3,3.2918]
[1760289001328,3.2078,4135.0,4134.2,3.2078]
[1760289001634,3.2078,4134.4,4133.2,3.20957184]
[1760289001839,0.43508,4134.3,4133.2,3.20957184]
[1760289002037,3.64289,4134.2,4133.3,3.2078]
[1760289002330,0.43515,4133.6,4133.3,3.2078]
[1760289002528,0.43517,4133.4,4133.2,0.00177184]
[1760289002829,5.76187782,4133.3,4133.2,0.00177184]
[1760289003031,0.43531,4132.1,4131.5,0.80404265]
[1760289003231,0.43531,4132.1,4131.2,3.2078]
[1760289003232,3.07965,4132.7,4131.7,3.2078]
[1760289003432,5.72534031,4133.3,4131.7,3.2078]
[1760289003433,0.43528,4132.4,4131.7,3.2078]
[1760289003642,0.43527,4132.4,4131.7,3.2078]
[1760289003840,3.16729061,4132.3,4131.7,3.2078]
[1760289004137,0.00240158,4132.3,4131.7,3.21018347]
[1760289004839,0.43769158,4132.3,4131.7,3.21018347]
[1760289005335,0.00240158,4132.3,4131.7,3.21018347]
[1760289005531,2.57352765,4132.2,4131.7,0.00238347]
[1760289005732,0.43533,4131.9,4131.7,0.00238347]
[1760289006034,3.00882765,4132.2,4131.7,3.18788347]
[1760289006338,0.43532,4132.0,4131.7,3.18788347]
[1760289006537,2.57352765,4132.2,4131.9,3.1855]
[1760289006736,0.00240158,4132.3,4131.8,3.2078]
[1760289006933,0.00240158,4132.3,4131.9,3.1855]
[1760289007239,3.2078,4133.5,4132.2,3.98954265]
[1760289007437,3.2078,4133.5,4132.8,1.2511]
[1760289007640,3.2078,4134.4,4133.1,3.2078]
[1760289007829,3.2078,4133.7,4132.9,3.1855]
[1760289008029,0.43518,4133.4,4132.9,3.1855]
[1760289008237,0.00286301,4133.4,4133.2,3.1855]
[1760289008439,0.00286301,4133.4,4133.3,3.98954265]
[1760289008841,0.00286301,4133.4,4133.3,3.1855]
[1760289009041,0.00286301,4133.4,4133.0,0.82879806]
[1760289009241,0.43518,4133.3,4132.9,0.82879806]
[1760289009433,0.43521,4133.1,4132.9,0.82879806]
[1760289009635,3.2078,4133.2,4132.3,0.82879806]
[1760289009840,3.2078,4133.2,4132.1,3.2078]
[1760289009841,2.6444,4132.2,4132.1,3.2078]
[1760289010037,2.6444,4131.8,4131.7,0.00238347]
[1760289010233,0.43534,4131.8,4131.7,0.00238347]
[1760289010535,1.08814,4132.6,4131.7,0.00238347]
[1760289010536,13.3598,4133.1,4131.9,1.2511]
[1760289010736,13.3598,4133.1,4132.3,4.01784506]
[1760289011040,13.3598,4133.1,4131.9,2.50751103]
[1760289011041,0.43522,4132.9,4132.4,0.83234506]
[1760289011242,13.3598,4133.1,4132.7,0.83234506]
[1760289011542,13.3598,4133.1,4131.9,1.25641103]
[1760289011543,0.4353,4132.2,4131.9,1.25641103]
[1760289011742,3.2078,4132.4,4132.0,0.833166]
[1760289011946,10.152,4133.1,4132.2,0.833166]
[1760289012143,3.08934401,4132.7,4132.5,0.833166]
[1760289012441,0.43524,4132.8,4132.5,4.018666]
[1760289012638,3.08934401,4133.0,4131.9,3.2078]
[1760289012639,0.43528,4132.3,4132.2,0.833166]
[1760289013041,3.64308,4132.3,4132.1,0.833166]
[1760289013231,3.64308,4132.3,4131.7,4.4442945]
[1760289013232,3.07972,4131.9,4131.8,0.833166]
[1760289013435,2.6444,4131.8,4131.7,0.00238347]
[1760289013745,2.6444,4131.8,4130.1,2.94015495]
[1760289013746,1.8088,4131.1,4129.9,3.1855]
[1760289013944,1.8088,4131.1,4130.0,1.25641103]
[1760289013945,3.2078,4131.0,4130.0,1.25641103]
[1760289014246,0.43553,4130.0,4129.8,3.2078]
[1760289014639,7.65118777,4129.9,4129.8,0.00204768]
[1760289015439,6.38992211,4129.9,4129.8,0.00204768]
[1760289015836,10.77836529,4129.9,4129.8,4.768e-05]
[1760289016038,2.2424,4129.3,4129.2,0.24217473]
[1760289016343,8.01532671,4129.3,4129.2,0.24217473]
[1760289016534,5.77292671,4129.3,4129.2,0.24217473]
[1760289016741,0.43555,4129.8,4129.2,0.24217473]
[1760289016937,2.56512671,4129.3,4129.2,0.24405416]
[1760289017133,2.56512671,4129.3,4129.2,3.42955416]
[1760289017334,0.00308735,4130.0,4129.3,3.1855]
[1760289018151,3.07930539,4129.9,4129.3,3.1855]
[1760289018441,3.07930539,4129.9,4129.2,0.24405416]
[1760289018442,5.83791692,4129.9,4129.2,0.24405416]
[1760289018740,2.2424,4129.4,4129.2,0.24405416]
[1760289018934,1.8068,4129.3,4129.2,0.24405416]
[1760289019137,5.83791692,4129.3,4129.2,0.24405416]
[1760289019337,3.07930539,4129.3,4129.2,0.24405416]
[1760289019538,3.2078,4129.6,4129.2,0.24405416]
[1760289019737,0.4356,4129.4,4129.2,0.24405416]
[1760289020149,3.15472572,4129.3,4129.2,0.24405416]
[1760289020349,7.67254303,4129.3,4129.2,0.24405416]
[1760289020542,7.67254303,4129.3,4127.7,3.1855]
[1760289020543,1.08914,4128.8,4127.7,3.1855]
[1760289020742,0.43575,4127.9,4127.7,3.1855]
[1760289020943,0.43571,4128.3,4127.2,3.2078]
[1760289021141,3.2078,4128.6,4127.2,3.2078]
[1760289021344,3.1129236,4128.2,4127.2,3.2078]
[1760289021539,3.2078,4128.6,4127.7,6.3933]
[1760289021943,3.1129236,4128.4,4127.7,6.3933]
[1760289022246,0.43571,4128.3,4127.7,6.3933]
[1760289022442,3.51745451,4128.3,4127.7,6.3933]
[1760289022643,0.43571,4128.3,4127.7,6.3933]
[1760289022849,3.2078,4128.6,4127.7,6.3933]
[1760289022850,0.43568,4128.6,4127.7,6.3933]
[1760289023038,3.2078,4129.1,4127.7,6.3933]
[1760289023239,0.43567,4128.7,4127.7,6.3933]
[1760289023642,3.10219761,4128.6,4127.7,6.3933]
[1760289024048,3.2078,4129.7,4128.6,3.1855]
[1760289024242,2.77521735,4130.2,4129.3,3.1855]
[1760289024555,3.2078,4131.0,4130.0,3.2078]
[1760289024845,2.64381285,4130.1,4129.2,6.3933]
[1760289025151,3.1398642,4130.9,4129.8,3.1855]
[1760289025453,0.00219255,4130.1,4130.0,6.3933]
[1760289025655,0.00219255,4130.1,4130.0,3.2078]
[1760289025855,0.43556,4129.7,4129.4,3.2078]
[1760289026047,9.097194,4130.1,4129.4,3.2078]
[1760289026251,9.097194,4130.1,4127.2,1.25397982]
[1760289026252,0.00219255,4130.1,4130.0,3.1855]
[1760289026552,0.00219255,4130.1,4129.9,3.2078]
[1760289026553,0.43771255,4130.1,4129.9,3.2078]
[1760289026756,8.93078301,4130.1,4129.4,3.2078]
[1760289026950,0.43553,4130.0,4129.4,3.2078]
[1760289027152,6.34446504,4130.1,4129.4,3.2078]
[1760289027355,3.13273713,4129.9,4129.4,3.2078]
[1760289027545,3.13273713,4130.0,4128.8,3.2078]
[1760289027746,2.73436967,4129.8,4129.3,6.3933]
[1760289027953,3.13273713,4129.8,4129.3,3.2078]
[1760289028249,0.43771255,4130.1,4129.4,3.1855]
[1760289028450,0.43557,4129.6,4128.8,6.3933]
[1760289028650,0.43559,4129.5,4128.8,3.2078]
[1760289028858,2.55162856,4129.5,4128.8,3.2078]
[1760289029053,0.43556,4129.7,4128.8,3.2078]
[1760289029350,2.77919307,4129.6,4128.8,3.2078]
[1760289029555,0.43558,4129.5,4128.3,6.3933]
[1760289029758,3.2078,4129.6,4128.8,3.2078]
[1760289029951,0.4356,4129.3,4128.3,6.3933]
[1760289030259,3.21480307,4129.2,4128.3,6.3933]
[1760289030554,0.43568,4128.6,4128.3,3.2078]
[1760289030759,0.43569,4128.5,4128.3,3.2078]
[1760289030947,1.99839,4128.5,4128.3,3.2078]
[1760289031552,0.43571,4128.3,4127.6,3.2078]
[1760289032154,0.43575,4128.0,4127.6,3.2078]
[1760289032356,5.67514487,4128.2,4127.6,3.2078]
[1760289032357,6.11086487,4128.2,4127.6,3.2078]
[1760289032657,4.29696,4128.8,4127.2,1.25397982]
[1760289032658,5.8291831,4127.9,4127.2,0.00287982]
[1760289032854,5.8291831,4128.1,4127.5,3.2078]
[1760289033058,0.43572,4128.2,4127.5,3.2078]
[1760289033257,3.10662411,4128.2,4127.5,3.2078]
[1760289033460,2.763351,4128.4,4127.6,3.27]
[1760289033761,3.2078,4128.5,4127.6,3.27]
[1760289034153,1.57615,4129.6,4128.0,3.2078]
[1760289034154,4.69089448,4128.3,4128.0,3.2078]
[1760289034359,1.5655,4128.3,4128.0,3.2078]
[1760289034549,1.5655,4128.1,4127.5,3.2078]
[1760289034748,3.2078,4127.8,4127.2,0.00287982]
[1760289034960,1.5655,4127.3,4127.2,0.00287982]
[1760289035266,4.23789545,4127.3,4127.2,0.00287982]
[1760289035560,0.43582,4127.2,4127.0,3.2078]
[1760289035863,1.5655,4126.6,4125.9,4.46421103]
[1760289036052,1.5655,4126.6,4125.9,3.2078]
[1760289036053,0.43591,4126.4,4125.9,3.2078]
[1760289036258,6.0902555,4126.5,4125.9,3.2078]
[1760289036459,6.0902555,4126.5,4126.0,3.27]
[1760289036460,0.40220059,4126.3,4126.0,3.27]
[1760289036658,0.00236446,4126.3,4126.1,3.27]
[1760289036860,0.00236446,4126.3,4126.0,0.00284513]
[1760289037161,1.5655,4126.1,4125.2,3.2078]
[1760289037461,6.29837318,4126.0,4125.2,3.2078]
[1760289037758,0.43599,4125.6,4125.2,3.2078]
[1760289037959,5.86242318,4126.0,4125.2,3.2078]
[1760289037960,0.43597,4125.8,4125.2,3.2078]
[1760289038260,1.5655,4125.9,4125.2,3.2078]
[1760289038261,5.86242318,4125.5,4125.2,3.20956097]
[1760289038456,5.82749451,4125.7,4125.3,3.27]